[Event "Late-Titled-Tuesday-Blitz-February-27-2024"]
[Site "Chess.com"]
[Date "2024.02.27"]
[Round "1"]
[White "Capablanca_Oujda_2021"]
[Black "boguszp"]
[Result "1-0"]
[WhiteElo "2534"]
[BlackElo "1999"]
[TimeControl "180+1"]
[EndTime "14:06:46 PST"]
[Termination "Capablanca_Oujda_2021 won by checkmate"]

1. e4 {[%clk 0:02:58.7]} 1... c6 {[%clk 0:02:59.8]} 2. d4 {[%clk 0:02:58.4]}
2... d5 {[%clk 0:03:00.6]} 3. exd5 {[%clk 0:02:58.4]} 3... cxd5 {[%clk
0:03:00.8]} 4. Bd3 {[%clk 0:02:55.9]} 4... Nc6 {[%clk 0:02:59.2]} 5. c3 {[%clk
0:02:55.7]} 5... Nf6 {[%clk 0:02:59.4]} 6. h3 {[%clk 0:02:53.2]} 6... g6 {[%clk
0:02:59.5]} 7. Qc2 {[%clk 0:02:53]} 7... Bg7 {[%clk 0:02:59.2]} 8. Nf3 {[%clk
0:02:52.8]} 8... O-O {[%clk 0:02:57.8]} 9. O-O {[%clk 0:02:52.3]} 9... Bd7
{[%clk 0:02:51.8]} 10. Re1 {[%clk 0:02:51.3]} 10... Rc8 {[%clk 0:02:50.5]} 11.
a3 {[%clk 0:02:49]} 11... e6 {[%clk 0:02:39.9]} 12. Bg5 {[%clk 0:02:44.8]} 12...
Qc7 {[%clk 0:02:39]} 13. Nbd2 {[%clk 0:02:41]} 13... Qb6 {[%clk 0:02:26.2]} 14.
Nb3 {[%clk 0:02:30.3]} 14... h6 {[%clk 0:02:09.8]} 15. Bh4 {[%clk 0:02:29.4]}
15... a5 {[%clk 0:02:01.3]} 16. Nc5 {[%clk 0:02:29.3]} 16... Rfd8 {[%clk
0:01:50.9]} 17. b4 {[%clk 0:02:21.4]} 17... Be8 {[%clk 0:01:46.1]} 18. Ne5
{[%clk 0:02:05.9]} 18... g5 {[%clk 0:01:40.9]} 19. Bg3 {[%clk 0:02:02.5]} 19...
Nh5 {[%clk 0:01:39.3]} 20. Bh2 {[%clk 0:01:44]} 20... Qc7 {[%clk 0:01:35.1]} 21.
Bh7+ {[%clk 0:01:26.3]} 21... Kh8 {[%clk 0:01:28.9]} 22. Ng6+ {[%clk 0:01:25.1]}
22... fxg6 {[%clk 0:01:23.7]} 23. Bxc7 {[%clk 0:01:26]} 23... Rxc7 {[%clk
0:01:18.8]} 24. Bxg6 {[%clk 0:01:25.2]} 24... Nf4 {[%clk 0:01:12.7]} 25. Bxe8
{[%clk 0:01:20.2]} 25... Rxe8 {[%clk 0:01:12.5]} 26. g3 {[%clk 0:01:19.5]} 26...
Nxh3+ {[%clk 0:01:08.9]} 27. Kg2 {[%clk 0:01:18.1]} 27... g4 {[%clk 0:01:08.1]}
28. Qg6 {[%clk 0:01:05.7]} 28... Rf8 {[%clk 0:01:07.8]} 29. f4 {[%clk
0:00:59.7]} 29... Rxf4 {[%clk 0:01:03.2]} 30. Rf1 {[%clk 0:00:36]} 30... Rcf7
{[%clk 0:01:00.5]} 31. Qxf7 {[%clk 0:00:36]} 31... Rxf7 {[%clk 0:00:59.5]} 32.
Rxf7 {[%clk 0:00:35.6]} 32... Ng5 {[%clk 0:00:56.1]} 33. Rxb7 {[%clk 0:00:32.8]}
33... axb4 {[%clk 0:00:53.3]} 34. axb4 {[%clk 0:00:33.7]} 34... e5 {[%clk
0:00:44.7]} 35. Ra8+ {[%clk 0:00:32.6]} 35... Kh7 {[%clk 0:00:42.4]} 36. Rc8
{[%clk 0:00:32.2]} 36... exd4 {[%clk 0:00:39.1]} 37. Rxc6 {[%clk 0:00:28]} 37...
dxc3 {[%clk 0:00:38.4]} 38. Rcc7 {[%clk 0:00:27.4]} 38... c2 {[%clk 0:00:36.2]}
39. Rxg7+ {[%clk 0:00:21.1]} 39... Kh8 {[%clk 0:00:36.5]} 40. Rgc7 {[%clk
0:00:21.6]} 40... d4 {[%clk 0:00:33.8]} 41. Rc8# {[%clk 0:00:20.5]} 1-0

[Event "Late-Titled-Tuesday-Blitz-February-27-2024"]
[Site "Chess.com"]
[Date "2024.02.27"]
[Round "1"]
[White "2346PL"]
[Black "Jospem"]
[Result "0-1"]
[WhiteElo "2521"]
[BlackElo "3084"]
[TimeControl "180+1"]
[EndTime "14:06:49 PST"]
[Termination "Jospem won by resignation"]

1. d4 {[%clk 0:03:00.9]} 1... Nf6 {[%clk 0:03:00.2]} 2. Bg5 {[%clk 0:03:00.5]}
2... e6 {[%clk 0:02:59.6]} 3. Nd2 {[%clk 0:02:59.5]} 3... Be7 {[%clk 0:02:59.5]}
4. Ngf3 {[%clk 0:02:56.4]} 4... b6 {[%clk 0:02:59.9]} 5. e4 {[%clk 0:02:56.6]}
5... Bb7 {[%clk 0:03:00.2]} 6. Bd3 {[%clk 0:02:56.4]} 6... d6 {[%clk 0:02:59.8]}
7. O-O {[%clk 0:02:55.1]} 7... Nbd7 {[%clk 0:03:00.1]} 8. Qe2 {[%clk 0:02:50.9]}
8... h6 {[%clk 0:03:00.3]} 9. Bh4 {[%clk 0:02:50.3]} 9... Nh5 {[%clk 0:03:00.2]}
10. Bxe7 {[%clk 0:02:44.6]} 10... Qxe7 {[%clk 0:03:01.1]} 11. Qe3 {[%clk
0:02:44.9]} 11... e5 {[%clk 0:02:58.4]} 12. c3 {[%clk 0:02:41.7]} 12... O-O
{[%clk 0:02:58.2]} 13. Rfe1 {[%clk 0:02:29.6]} 13... Rfe8 {[%clk 0:02:55.5]} 14.
dxe5 {[%clk 0:02:10.9]} 14... dxe5 {[%clk 0:02:37]} 15. Bc4 {[%clk 0:02:09.3]}
15... a6 {[%clk 0:02:28.3]} 16. Rad1 {[%clk 0:02:06.1]} 16... b5 {[%clk
0:02:27.3]} 17. Bd5 {[%clk 0:02:05.7]} 17... c6 {[%clk 0:02:27.9]} 18. Bb3
{[%clk 0:02:05.6]} 18... Nc5 {[%clk 0:02:28.6]} 19. Bc2 {[%clk 0:02:02.8]} 19...
a5 {[%clk 0:02:29.2]} 20. b3 {[%clk 0:01:58.7]} 20... Nf4 {[%clk 0:02:26.8]} 21.
g3 {[%clk 0:01:57]} 21... Nh5 {[%clk 0:02:26.2]} 22. Nh4 {[%clk 0:01:53.7]}
22... Bc8 {[%clk 0:02:13.6]} 23. Nf5 {[%clk 0:01:52.9]} 23... Bxf5 {[%clk
0:02:14.1]} 24. exf5 {[%clk 0:01:53.8]} 24... Nf6 {[%clk 0:02:14.6]} 25. Ne4
{[%clk 0:01:50.6]} 25... Ncxe4 {[%clk 0:02:13.7]} 26. Bxe4 {[%clk 0:01:51.5]}
26... Rac8 {[%clk 0:02:12.2]} 27. Rd2 {[%clk 0:01:49.9]} 27... a4 {[%clk
0:02:11]} 28. Red1 {[%clk 0:01:45.1]} 28... axb3 {[%clk 0:02:11.4]} 29. axb3
{[%clk 0:01:45]} 29... Qa3 {[%clk 0:02:12.1]} 30. Bc2 {[%clk 0:01:35.9]} 30...
e4 {[%clk 0:02:06.8]} 31. h3 {[%clk 0:01:31.8]} 31... Qe7 {[%clk 0:00:31.3]} 32.
c4 {[%clk 0:01:29.4]} 32... bxc4 {[%clk 0:00:30.4]} 33. bxc4 {[%clk 0:01:29.7]}
33... Rb8 {[%clk 0:00:30.2]} 34. Ba4 {[%clk 0:01:23.1]} 34... Rec8 {[%clk
0:00:26.7]} 35. g4 {[%clk 0:01:03.4]} 35... Qb4 {[%clk 0:00:25]} 36. Bc2 {[%clk
0:00:46.5]} 36... Qxc4 {[%clk 0:00:24.6]} 37. Bb1 {[%clk 0:00:31.9]} 37... Re8
{[%clk 0:00:23.8]} 38. Ba2 {[%clk 0:00:31.5]} 38... Qb4 {[%clk 0:00:22.3]} 39.
Qxe4 {[%clk 0:00:25.3]} 39... Qxe4 {[%clk 0:00:21.9]} 0-1

[Event "Late-Titled-Tuesday-Blitz-February-27-2024"]
[Site "Chess.com"]
[Date "2024.02.27"]
[Round "1"]
[White "CURRUTACO59"]
[Black "FernandoArauzAlonso"]
[Result "0-1"]
[WhiteElo "2249"]
[BlackElo "2602"]
[TimeControl "180+1"]
[EndTime "14:06:50 PST"]
[Termination "FernandoArauzAlonso won on time"]

1. Nf3 {[%clk 0:02:54.5]} 1... g6 {[%clk 0:02:56.3]} 2. d4 {[%clk 0:02:54.3]}
2... Bg7 {[%clk 0:02:56.5]} 3. c4 {[%clk 0:02:54.4]} 3... Nf6 {[%clk 0:02:56.7]}
4. g3 {[%clk 0:02:54.4]} 4... d6 {[%clk 0:02:57]} 5. Bg2 {[%clk 0:02:54.4]} 5...
O-O {[%clk 0:02:57.6]} 6. O-O {[%clk 0:02:54.1]} 6... Nbd7 {[%clk 0:02:57]} 7.
Nc3 {[%clk 0:02:54]} 7... e5 {[%clk 0:02:54.7]} 8. e4 {[%clk 0:02:52.9]} 8...
exd4 {[%clk 0:02:52.4]} 9. Nxd4 {[%clk 0:02:52.2]} 9... Re8 {[%clk 0:02:52]} 10.
h3 {[%clk 0:02:49]} 10... Nc5 {[%clk 0:02:48.2]} 11. Re1 {[%clk 0:02:48.3]}
11... a5 {[%clk 0:02:46.4]} 12. Bf4 {[%clk 0:02:27.3]} 12... Nfd7 {[%clk
0:02:40.3]} 13. Qd2 {[%clk 0:02:08.5]} 13... Ne5 {[%clk 0:02:29.6]} 14. b3
{[%clk 0:01:30.4]} 14... Bd7 {[%clk 0:02:02]} 15. Be3 {[%clk 0:01:11.3]} 15...
Ned3 {[%clk 0:01:47.4]} 16. Re2 {[%clk 0:01:02]} 16... Qf6 {[%clk 0:01:23.6]}
17. Rd1 {[%clk 0:00:56.8]} 17... c6 {[%clk 0:00:58.2]} 18. Kh2 {[%clk
0:00:42.8]} 18... Rad8 {[%clk 0:00:57.6]} 19. f4 {[%clk 0:00:36.2]} 19... Bc8
{[%clk 0:00:50.8]} 20. Bg1 {[%clk 0:00:18.5]} 20... h5 {[%clk 0:00:48.1]} 21.
Rf1 {[%clk 0:00:15.8]} 21... h4 {[%clk 0:00:45]} 22. g4 {[%clk 0:00:15.3]} 22...
Qe7 {[%clk 0:00:43.1]} 23. Nf3 {[%clk 0:00:12.8]} 23... Nxf4 {[%clk 0:00:39.1]}
24. Qxf4 {[%clk 0:00:08.5]} 24... Be5 {[%clk 0:00:39.2]} 25. Nxe5 {[%clk
0:00:07.8]} 25... dxe5 {[%clk 0:00:39.8]} 26. Qe3 {[%clk 0:00:07.3]} 26... Rd3
{[%clk 0:00:39.3]} 27. Qxc5 {[%clk 0:00:07]} 27... Rxc3 {[%clk 0:00:39.1]} 28.
Qxe7 {[%clk 0:00:05]} 28... Rxe7 {[%clk 0:00:40]} 29. Rd1 {[%clk 0:00:04.3]}
29... a4 {[%clk 0:00:39.3]} 30. Rd8+ {[%clk 0:00:03.7]} 30... Kg7 {[%clk
0:00:39.8]} 31. Rxc8 {[%clk 0:00:04.4]} 31... axb3 {[%clk 0:00:40.4]} 32. axb3
{[%clk 0:00:03.6]} 32... Rxb3 {[%clk 0:00:41.3]} 33. Re3 {[%clk 0:00:03.2]}
33... b5 {[%clk 0:00:42.2]} 34. Rxb3 {[%clk 0:00:02.9]} 34... bxc4 {[%clk
0:00:42.5]} 35. Rc3 {[%clk 0:00:03.4]} 35... c5 {[%clk 0:00:43.4]} 36. Rxc4
{[%clk 0:00:03.3]} 36... Ra7 {[%clk 0:00:44.3]} 37. R4xc5 {[%clk 0:00:03.1]}
37... Ra2 {[%clk 0:00:45.2]} 38. Rxe5 {[%clk 0:00:02.8]} 38... f5 {[%clk
0:00:46.1]} 39. Re7+ {[%clk 0:00:02.7]} 39... Kf6 {[%clk 0:00:47]} 40. Ree8
{[%clk 0:00:02.2]} 40... Kg5 {[%clk 0:00:47.9]} 0-1

[Event "Late-Titled-Tuesday-Blitz-February-27-2024"]
[Site "Chess.com"]
[Date "2024.02.27"]
[Round "1"]
[White "NateSolon"]
[Black "Cristi_Coca"]
[Result "1-0"]
[WhiteElo "2689"]
[BlackElo "2391"]
[TimeControl "180+1"]
[EndTime "14:06:51 PST"]
[Termination "NateSolon won by resignation"]

1. d4 {[%clk 0:02:37.9]} 1... Nf6 {[%clk 0:02:50.7]} 2. Bf4 {[%clk 0:02:34.7]}
2... g6 {[%clk 0:02:13.2]} 3. Nc3 {[%clk 0:02:31.3]} 3... Bg7 {[%clk 0:02:01.8]}
4. e4 {[%clk 0:02:30.4]} 4... d6 {[%clk 0:02:02.5]} 5. Qd2 {[%clk 0:02:30.1]}
5... O-O {[%clk 0:02:01.6]} 6. O-O-O {[%clk 0:02:29.8]} 6... Nbd7 {[%clk
0:02:00.2]} 7. Nf3 {[%clk 0:02:28.6]} 7... c5 {[%clk 0:01:59.9]} 8. Bh6 {[%clk
0:02:21.9]} 8... cxd4 {[%clk 0:01:56.3]} 9. Nxd4 {[%clk 0:02:22.8]} 9... Qa5
{[%clk 0:01:53.6]} 10. f3 {[%clk 0:02:11.6]} 10... Ne5 {[%clk 0:01:43.5]} 11. h4
{[%clk 0:02:03.8]} 11... Be6 {[%clk 0:01:03.6]} 12. Nxe6 {[%clk 0:01:53.4]}
12... fxe6 {[%clk 0:01:04.5]} 13. Bxg7 {[%clk 0:01:53.5]} 13... Kxg7 {[%clk
0:01:04.4]} 14. f4 {[%clk 0:01:53.9]} 14... Neg4 {[%clk 0:00:58.3]} 15. Bc4
{[%clk 0:01:53.4]} 15... Qc5 {[%clk 0:00:20.1]} 16. Bxe6 {[%clk 0:01:46.6]}
16... Nf2 {[%clk 0:00:20.2]} 17. Na4 {[%clk 0:01:35]} 17... Qc6 {[%clk
0:00:17.1]} 18. Qxf2 {[%clk 0:01:32.8]} 18... Qxa4 {[%clk 0:00:17.2]} 19. e5
{[%clk 0:01:31]} 19... Nh5 {[%clk 0:00:15.2]} 20. exd6 {[%clk 0:01:23.9]} 20...
exd6 {[%clk 0:00:16.1]} 21. g3 {[%clk 0:01:20]} 21... Rae8 {[%clk 0:00:14.3]}
22. Rxd6 {[%clk 0:01:15]} 22... Rxe6 {[%clk 0:00:14.2]} 23. Rxe6 {[%clk
0:01:15.9]} 23... Qxa2 {[%clk 0:00:14]} 24. Qd4+ {[%clk 0:00:46.6]} 24... Kg8
{[%clk 0:00:11.7]} 25. Rhe1 {[%clk 0:00:43.3]} 25... Nxg3 {[%clk 0:00:06.4]} 26.
Re8 {[%clk 0:00:31.2]} 26... Qa1+ {[%clk 0:00:06.1]} 27. Kd2 {[%clk 0:00:30.8]}
27... Qa5+ {[%clk 0:00:06.8]} 28. b4 {[%clk 0:00:30.9]} 28... Qf5 {[%clk
0:00:05.9]} 29. Rxf8+ {[%clk 0:00:29.5]} 29... Qxf8 {[%clk 0:00:06.8]} 30. Qd5+
{[%clk 0:00:24.9]} 30... Kg7 {[%clk 0:00:04.7]} 31. Qe5+ {[%clk 0:00:24.5]}
31... Kh6 {[%clk 0:00:04.4]} 32. Qg5+ {[%clk 0:00:23.8]} 1-0

[Event "Late-Titled-Tuesday-Blitz-February-27-2024"]
[Site "Chess.com"]
[Date "2024.02.27"]
[Round "1"]
[White "NMJeevanK"]
[Black "HeinichessPY"]
[Result "1-0"]
[WhiteElo "2593"]
[BlackElo "2229"]
[TimeControl "180+1"]
[EndTime "14:06:53 PST"]
[Termination "NMJeevanK won by checkmate"]

1. e4 {[%clk 0:03:00.2]} 1... c5 {[%clk 0:02:58.6]} 2. Nf3 {[%clk 0:02:58.3]}
2... Nc6 {[%clk 0:02:58.2]} 3. Nc3 {[%clk 0:02:58.3]} 3... g6 {[%clk 0:02:57.5]}
4. Bc4 {[%clk 0:02:58.2]} 4... Bg7 {[%clk 0:02:56.9]} 5. O-O {[%clk 0:02:58.3]}
5... e6 {[%clk 0:02:55.4]} 6. Re1 {[%clk 0:02:57.8]} 6... Nge7 {[%clk
0:02:54.9]} 7. a3 {[%clk 0:02:56.8]} 7... O-O {[%clk 0:02:54.1]} 8. e5 {[%clk
0:02:50.4]} 8... d5 {[%clk 0:02:39.5]} 9. exd6 {[%clk 0:02:50]} 9... Nf5 {[%clk
0:02:39.6]} 10. Ne4 {[%clk 0:02:43.3]} 10... b6 {[%clk 0:02:37.3]} 11. d3 {[%clk
0:02:39.5]} 11... Nxd6 {[%clk 0:02:34]} 12. Bg5 {[%clk 0:02:37.1]} 12... f6
{[%clk 0:02:24.4]} 13. Bf4 {[%clk 0:02:30.7]} 13... Nxc4 {[%clk 0:02:16.6]} 14.
dxc4 {[%clk 0:02:31.6]} 14... e5 {[%clk 0:02:13]} 15. Bg3 {[%clk 0:02:12]} 15...
Be6 {[%clk 0:02:04.1]} 16. Nd6 {[%clk 0:02:07.4]} 16... Nd4 {[%clk 0:02:01.5]}
17. Nxd4 {[%clk 0:02:07.3]} 17... Qxd6 {[%clk 0:01:45.4]} 18. Nxe6 {[%clk
0:01:59.8]} 18... Qxe6 {[%clk 0:01:44.5]} 19. Qd5 {[%clk 0:01:54.5]} 19... Qf7
{[%clk 0:01:40.3]} 20. Rad1 {[%clk 0:01:52.3]} 20... Rad8 {[%clk 0:01:36.9]} 21.
Qxd8 {[%clk 0:01:52]} 21... Rxd8 {[%clk 0:01:37.1]} 22. Rxd8+ {[%clk 0:01:52.8]}
22... Bf8 {[%clk 0:01:37.4]} 23. b3 {[%clk 0:01:52.5]} 23... Kg7 {[%clk
0:01:32]} 24. Red1 {[%clk 0:01:51.9]} 24... Be7 {[%clk 0:01:32.2]} 25. R8d7
{[%clk 0:01:51.6]} 25... Qe6 {[%clk 0:01:32.5]} 26. Rxa7 {[%clk 0:01:51.4]}
26... Kh6 {[%clk 0:01:28.4]} 27. Rdd7 {[%clk 0:01:48.1]} 27... Bd6 {[%clk
0:01:17.4]} 28. h4 {[%clk 0:01:43.6]} 28... Kh5 {[%clk 0:01:12.8]} 29. Rxh7+
{[%clk 0:01:35]} 29... Kg4 {[%clk 0:01:08.7]} 30. h5 {[%clk 0:01:23.5]} 30... e4
{[%clk 0:00:54]} 31. Bxd6 {[%clk 0:00:52.6]} 31... Qxd6 {[%clk 0:00:54.9]} 32.
hxg6 {[%clk 0:00:49.3]} 32... Qd1+ {[%clk 0:00:48.5]} 33. Kh2 {[%clk 0:00:49.1]}
33... Qd6+ {[%clk 0:00:49.1]} 34. g3 {[%clk 0:00:40.9]} 34... e3 {[%clk
0:00:49]} 35. g7 {[%clk 0:00:35.1]} 35... exf2 {[%clk 0:00:35.2]} 36. g8=Q+
{[%clk 0:00:35]} 36... Kf3 {[%clk 0:00:35.8]} 37. Qa8+ {[%clk 0:00:32.8]} 37...
Ke2 {[%clk 0:00:26.1]} 38. Rae7+ {[%clk 0:00:26.2]} 38... Kf1 {[%clk 0:00:20.5]}
39. Qh1# {[%clk 0:00:25.6]} 1-0

[Event "Late-Titled-Tuesday-Blitz-February-27-2024"]
[Site "Chess.com"]
[Date "2024.02.27"]
[Round "1"]
[White "Nick12772"]
[Black "gahryman"]
[Result "0-1"]
[WhiteElo "2392"]
[BlackElo "2690"]
[TimeControl "180+1"]
[EndTime "14:06:56 PST"]
[Termination "gahryman won by resignation"]

1. Nf3 {[%clk 0:03:00.9]} 1... d5 {[%clk 0:02:57.2]} 2. g3 {[%clk 0:03:00]} 2...
Nf6 {[%clk 0:02:57.6]} 3. Bg2 {[%clk 0:03:00.5]} 3... c6 {[%clk 0:02:58.5]} 4.
O-O {[%clk 0:03:01.1]} 4... Bg4 {[%clk 0:02:59.1]} 5. d3 {[%clk 0:03:01.5]} 5...
Nbd7 {[%clk 0:02:59.2]} 6. Nbd2 {[%clk 0:03:02.1]} 6... e5 {[%clk 0:02:59.3]} 7.
b3 {[%clk 0:03:01]} 7... Bc5 {[%clk 0:02:58.8]} 8. Bb2 {[%clk 0:03:01.4]} 8...
Qe7 {[%clk 0:02:59.3]} 9. a3 {[%clk 0:02:49.7]} 9... a5 {[%clk 0:02:57.9]} 10.
h3 {[%clk 0:02:49.4]} 10... Bh5 {[%clk 0:02:57.2]} 11. Re1 {[%clk 0:02:48.8]}
11... e4 {[%clk 0:02:43]} 12. dxe4 {[%clk 0:02:31.4]} 12... dxe4 {[%clk
0:02:42.6]} 13. Nd4 {[%clk 0:02:23.3]} 13... e3 {[%clk 0:02:40.7]} 14. Nc4
{[%clk 0:01:53.1]} 14... exf2+ {[%clk 0:02:34.2]} 15. Kxf2 {[%clk 0:01:54]}
15... O-O {[%clk 0:02:03.6]} 16. g4 {[%clk 0:01:22.7]} 16... Bg6 {[%clk
0:01:35.8]} 17. e3 {[%clk 0:01:22.7]} 17... Ne4+ {[%clk 0:01:31.3]} 18. Kg1
{[%clk 0:01:18.7]} 18... Ndf6 {[%clk 0:01:21.6]} 19. a4 {[%clk 0:01:09.5]} 19...
Rad8 {[%clk 0:01:16.8]} 20. Qf3 {[%clk 0:01:01.8]} 20... h5 {[%clk 0:01:11.3]}
21. Nf5 {[%clk 0:00:44.4]} 21... Bxf5 {[%clk 0:01:07.5]} 22. Qxf5 {[%clk
0:00:45.3]} 22... hxg4 {[%clk 0:00:59.2]} 23. hxg4 {[%clk 0:00:45.6]} 23... Rd5
{[%clk 0:00:39]} 24. Qf4 {[%clk 0:00:39.8]} 24... Rfd8 {[%clk 0:00:25.7]} 25.
Bxf6 {[%clk 0:00:35]} 25... Nxf6 {[%clk 0:00:23.1]} 26. Bxd5 {[%clk 0:00:31.9]}
26... Nxd5 {[%clk 0:00:23.6]} 27. Qe5 {[%clk 0:00:29.6]} 27... Qh4 {[%clk
0:00:20.7]} 28. Qe4 {[%clk 0:00:18.5]} 28... Nf6 {[%clk 0:00:18.7]} 29. Qg2
{[%clk 0:00:17.7]} 29... Nxg4 {[%clk 0:00:18.6]} 30. Rad1 {[%clk 0:00:14.7]}
30... Re8 {[%clk 0:00:18.6]} 31. Rd3 {[%clk 0:00:05]} 31... Qxe1+ {[%clk
0:00:17.8]} 0-1

[Event "Late-Titled-Tuesday-Blitz-February-27-2024"]
[Site "Chess.com"]
[Date "2024.02.27"]
[Round "1"]
[White "Bryanl106"]
[Black "C_K_G"]
[Result "1-0"]
[WhiteElo "2553"]
[BlackElo "2148"]
[TimeControl "180+1"]
[EndTime "14:06:56 PST"]
[Termination "Bryanl106 won on time"]

1. e4 {[%clk 0:02:58.9]} 1... c5 {[%clk 0:03:00.1]} 2. Nf3 {[%clk 0:02:58.7]}
2... d6 {[%clk 0:03:00.6]} 3. d4 {[%clk 0:02:59.1]} 3... cxd4 {[%clk 0:03:01.1]}
4. Nxd4 {[%clk 0:03:00]} 4... Nf6 {[%clk 0:03:01.4]} 5. Nc3 {[%clk 0:03:00.7]}
5... a6 {[%clk 0:03:01.9]} 6. h3 {[%clk 0:03:00.8]} 6... e5 {[%clk 0:03:02.1]}
7. Nde2 {[%clk 0:03:01.1]} 7... Be6 {[%clk 0:03:01.8]} 8. g4 {[%clk 0:02:59.1]}
8... Nbd7 {[%clk 0:02:58.9]} 9. Bg2 {[%clk 0:02:58.7]} 9... Be7 {[%clk
0:02:56.5]} 10. Ng3 {[%clk 0:02:53.9]} 10... b5 {[%clk 0:02:24.3]} 11. g5 {[%clk
0:02:51.6]} 11... Ng8 {[%clk 0:02:24.7]} 12. h4 {[%clk 0:02:50.9]} 12... Nb6
{[%clk 0:02:25.1]} 13. Nf5 {[%clk 0:02:48.4]} 13... Bf8 {[%clk 0:02:18.3]} 14.
Be3 {[%clk 0:02:39]} 14... Rc8 {[%clk 0:02:16.1]} 15. O-O {[%clk 0:02:37.2]}
15... Nc4 {[%clk 0:02:11.7]} 16. Bc1 {[%clk 0:02:36.2]} 16... Ne7 {[%clk
0:01:51.9]} 17. b3 {[%clk 0:02:19.1]} 17... Bxf5 {[%clk 0:01:20.5]} 18. exf5
{[%clk 0:02:17]} 18... Nb6 {[%clk 0:01:16.7]} 19. Qd3 {[%clk 0:02:14.3]} 19...
Qc7 {[%clk 0:01:13.6]} 20. Bd2 {[%clk 0:02:01.7]} 20... d5 {[%clk 0:01:10.5]}
21. f6 {[%clk 0:02:00.4]} 21... gxf6 {[%clk 0:01:01.2]} 22. gxf6 {[%clk
0:01:59.1]} 22... e4 {[%clk 0:01:01.2]} 23. Qh3 {[%clk 0:01:52.4]} 23... Ng6
{[%clk 0:00:57.8]} 24. Rfe1 {[%clk 0:01:44.5]} 24... Bd6 {[%clk 0:00:52.8]} 25.
h5 {[%clk 0:01:38.3]} 25... Nf4 {[%clk 0:00:49.8]} 26. Bxf4 {[%clk 0:01:37.4]}
26... Bxf4 {[%clk 0:00:50.7]} 27. Nxd5 {[%clk 0:01:38]} 27... Nxd5 {[%clk
0:00:50.5]} 28. Rxe4+ {[%clk 0:01:38.3]} 28... Kf8 {[%clk 0:00:48.9]} 29. h6
{[%clk 0:01:21.7]} 29... Rg8 {[%clk 0:00:35.7]} 30. c4 {[%clk 0:01:07.2]} 30...
Nxf6 {[%clk 0:00:19.9]} 31. Rxf4 {[%clk 0:01:06.5]} 31... Rg6 {[%clk 0:00:20.2]}
32. Re1 {[%clk 0:01:04.1]} 32... Rd8 {[%clk 0:00:19.7]} 33. Rf5 {[%clk
0:00:57.7]} 33... Qd7 {[%clk 0:00:17.3]} 34. Qf3 {[%clk 0:00:52.5]} 34... Ng4
{[%clk 0:00:15]} 35. Rd5 {[%clk 0:00:49.2]} 35... Qc7 {[%clk 0:00:14.2]} 36.
Rxd8+ {[%clk 0:00:48.3]} 36... Qxd8 {[%clk 0:00:15.1]} 37. c5 {[%clk 0:00:48.2]}
37... Qc7 {[%clk 0:00:14.2]} 38. c6 {[%clk 0:00:46.4]} 38... Qh2+ {[%clk
0:00:13.5]} 39. Kf1 {[%clk 0:00:47]} 39... Ne5 {[%clk 0:00:11.9]} 40. c7 {[%clk
0:00:44.3]} 1-0

[Event "Late-Titled-Tuesday-Blitz-February-27-2024"]
[Site "Chess.com"]
[Date "2024.02.27"]
[Round "1"]
[White "JulbeNn"]
[Black "SpeedofLight0"]
[Result "0-1"]
[WhiteElo "2520"]
[BlackElo "3064"]
[TimeControl "180+1"]
[EndTime "14:06:57 PST"]
[Termination "SpeedofLight0 won by resignation"]

1. e4 {[%clk 0:02:59.2]} 1... e6 {[%clk 0:02:57.1]} 2. d4 {[%clk 0:02:59.4]}
2... d5 {[%clk 0:02:57.4]} 3. e5 {[%clk 0:02:59.7]} 3... c5 {[%clk 0:02:57.3]}
4. dxc5 {[%clk 0:03:00.3]} 4... Nc6 {[%clk 0:02:54.4]} 5. Nf3 {[%clk 0:03:00.6]}
5... Bxc5 {[%clk 0:02:54]} 6. Bd3 {[%clk 0:03:01.1]} 6... Nge7 {[%clk 0:02:52]}
7. Bf4 {[%clk 0:03:00.8]} 7... Ng6 {[%clk 0:02:50.2]} 8. Bg3 {[%clk 0:03:01.5]}
8... O-O {[%clk 0:02:50.2]} 9. O-O {[%clk 0:03:01.7]} 9... Bd7 {[%clk
0:02:41.7]} 10. Nbd2 {[%clk 0:02:52.7]} 10... Rc8 {[%clk 0:02:40.8]} 11. c3
{[%clk 0:02:51.1]} 11... a6 {[%clk 0:02:39]} 12. Qe2 {[%clk 0:02:50.1]} 12...
Qe7 {[%clk 0:02:27.6]} 13. h4 {[%clk 0:02:49.5]} 13... f6 {[%clk 0:01:55.4]} 14.
h5 {[%clk 0:02:49.1]} 14... Ngxe5 {[%clk 0:01:54.3]} 15. Nxe5 {[%clk 0:02:41.3]}
15... fxe5 {[%clk 0:01:53.5]} 16. Bxe5 {[%clk 0:02:35.9]} 16... Nxe5 {[%clk
0:01:52.7]} 17. Qxe5 {[%clk 0:02:36.8]} 17... Bd6 {[%clk 0:01:52.9]} 18. Qe3
{[%clk 0:02:26.7]} 18... Qh4 {[%clk 0:01:52]} 19. g3 {[%clk 0:02:03.4]} 19...
Qh3 {[%clk 0:01:42.3]} 20. Nb3 {[%clk 0:01:52.5]} 20... e5 {[%clk 0:01:39.1]}
21. Rfd1 {[%clk 0:01:38.7]} 21... Bc6 {[%clk 0:01:29.4]} 22. Bf1 {[%clk
0:01:32.1]} 22... Qxh5 {[%clk 0:01:28.4]} 23. Bg2 {[%clk 0:01:32.7]} 23... Qf7
{[%clk 0:01:10.5]} 24. Rd2 {[%clk 0:01:17.6]} 24... Bb8 {[%clk 0:00:56.2]} 25.
Rad1 {[%clk 0:01:14.9]} 25... e4 {[%clk 0:00:56.3]} 26. c4 {[%clk 0:01:13]}
26... dxc4 {[%clk 0:00:54.5]} 27. Na5 {[%clk 0:01:13.1]} 27... Ba4 {[%clk
0:00:50]} 28. Re1 {[%clk 0:01:07.4]} 28... Rce8 {[%clk 0:00:47.1]} 29. Bxe4
{[%clk 0:01:04.7]} 29... Kh8 {[%clk 0:00:44]} 30. Bd5 {[%clk 0:01:03.3]} 30...
Rxe3 {[%clk 0:00:42.9]} 31. Rxe3 {[%clk 0:00:57.3]} 31... Qd7 {[%clk 0:00:28.3]}
32. Nxc4 {[%clk 0:00:55.7]} 32... Bc6 {[%clk 0:00:27.9]} 33. Be6 {[%clk
0:00:50.8]} 33... Qe7 {[%clk 0:00:24.8]} 34. Na5 {[%clk 0:00:36.7]} 34... Qc5
{[%clk 0:00:22.2]} 35. Nb3 {[%clk 0:00:33.2]} 35... Qh5 {[%clk 0:00:21.6]} 36.
f3 {[%clk 0:00:26.2]} 36... Bxf3 {[%clk 0:00:20.6]} 37. Rh2 {[%clk 0:00:25.9]}
37... Qg5 {[%clk 0:00:20.5]} 38. Kf2 {[%clk 0:00:25.9]} 38... Bxg3+ {[%clk
0:00:20]} 0-1